bitfinex/quotes_ETHUSD_20220120
["timestamp","ask_amount","ask_price","bid_price","bid_amount"]
[1642705242098,0.01204573,3209.0,3208.9,1.03334913]
[1642705242299,0.01772996,3209.0,3208.8,1.49771779]
[1642705242699,0.00511581,3208.9,3208.8,1.49771779]
[1642705243548,0.00511581,3208.9,3208.8,2.56068099]
[1642705243752,1.47170624,3208.9,3208.8,2.56068099]
[1642705244149,0.00511581,3208.9,3208.8,2.56068099]
[1642705244549,0.00511581,3208.9,3208.8,2.93368099]
[1642705244748,1.47678989,3208.9,3208.8,2.93368099]
[1642705244954,5.13446746,3208.9,3208.8,0.373]
[1642705245151,2.77517129,3208.9,3208.3,0.373]
[1642705245349,1.47029329,3208.5,3208.3,0.373]
[1642705245650,0.00227369,3208.4,3208.3,0.373]
[1642705246051,1.47133221,3208.4,3208.3,1.62990016]
[1642705246256,0.00227369,3208.4,3208.3,1.82990016]
[1642705246698,1.46905852,3208.7,3208.4,6.15]
[1642705247000,1.46905852,3208.7,3208.5,2.03728595]
[1642705247001,0.00170527,3208.7,3208.5,2.03728595]
[1642705247198,1.46905852,3209.2,3208.6,6.98333433]
[1642705247402,1.46905852,3209.2,3208.7,0.373]
[1642705247602,2.20543994,3209.5,3208.8,1.2181111]
[1642705247603,0.00170527,3209.0,3208.8,1.2181111]
[1642705247803,0.00170527,3209.0,3208.9,6.523]
[1642705248003,1.46905852,3209.2,3209.1,0.88427277]
[1642705248203,1.89936599,3208.9,3208.8,1.2181111]
[1642705248404,1.46905852,3209.2,3208.9,5.15]
[1642705248405,0.00113685,3209.2,3208.9,5.15]
[1642705248604,0.00113685,3209.2,3209.0,3.12062423]
[1642705248808,0.00113685,3209.2,3209.1,5.923]
[1642705249002,0.00113685,3209.2,3209.1,0.373]
[1642705249203,1.47019537,3209.2,3209.1,0.373]
[1642705249704,0.00113685,3209.2,3209.1,0.373]
[1642705250105,1.46905852,3209.4,3209.2,3.8]
[1642705250344,1.46905852,3209.4,3209.3,2.15335579]
[1642705250546,0.01222517,3209.5,3209.1,0.373]
[1642705250747,0.00113684,3209.4,3209.2,0.373]
[1642705250945,0.00113684,3209.4,3209.3,0.373]
[1642705251458,2.20543994,3209.8,3209.4,0.85800496]
[1642705251649,2.20543994,3209.9,3209.5,3.6157775]
[1642705251848,2.94058659,3210.1,3209.6,5.75]
[1642705252050,2.94058659,3210.2,3210.1,0.96854793]
[1642705252251,2.94058659,3210.3,3210.1,0.96854793]
[1642705252450,3.59685174,3211.0,3210.2,5.623]
[1642705252648,5.24336877,3211.5,3210.3,2.74035678]
[1642705252649,0.00511581,3210.6,3210.3,2.74035678]
[1642705252850,0.00511581,3210.6,3210.4,0.373]
[1642705253054,0.00454739,3210.5,3210.1,1.00109372]
[1642705253253,0.00454739,3210.5,3210.3,1.55691]
[1642705253456,3.59685174,3211.4,3210.3,9.26382]
[1642705253655,3.59685174,3211.4,3210.4,0.41700066]
[1642705253656,5.174e-05,3211.4,3210.4,0.41700066]
[1642705253857,0.00511581,3211.3,3210.5,0.03574832]
[1642705254103,0.00511581,3211.3,3211.2,1.11527515]
[1642705254299,5.25589117,3212.5,3211.2,1.11527515]
[1642705254300,5.24336877,3212.4,3211.2,2.69329499]
[1642705254499,5.24336877,3212.4,3211.5,1.1306607]
[1642705254500,0.01295217,3211.6,3211.5,1.1306607]
[1642705254697,0.01295217,3211.6,3211.3,0.77832]
[1642705254900,0.01295217,3211.6,3211.4,0.40531884]
[1642705255098,0.01295217,3211.6,3211.5,6.15]
[1642705255298,5.24336877,3213.5,3211.5,6.55995217]
[1642705255497,0.01296652,3212.6,3212.1,1.33426906]
[1642705255698,3.1212977,3211.9,3211.7,0.91993734]
[1642705255898,3.1212977,3211.9,3211.7,1.33008836]
[1642705256102,3.1212977,3211.9,3211.7,1.15113]
[1642705256299,3.0712977,3211.9,3211.7,1.15113]
[1642705256499,3.0712977,3211.9,3211.8,6.24290996]
[1642705257303,0.05520414,3211.8,3210.9,0.373]
[1642705257603,0.05520414,3211.8,3210.6,1.55702]
[1642705257604,2.74035678,3211.8,3211.0,0.00454739]
[1642705258068,0.01206021,3211.1,3210.7,0.00625266]
[1642705258268,0.01206021,3211.1,3210.6,1.55702]
[1642705258470,0.01206021,3211.1,3210.6,2.51151171]
[1642705258673,2.74035678,3211.8,3211.2,1.11130917]
[1642705258872,0.01218067,3211.8,3210.7,0.40385369]
[1642705259070,2.75253745,3211.8,3211.3,0.00284212]
[1642705259273,0.01218067,3211.8,3211.3,0.00284212]
[1642705259470,0.01218067,3211.8,3211.0,1.48339055]
[1642705259672,0.01218067,3211.8,3211.3,0.77842]
[1642705259871,0.01218067,3211.8,3211.3,2.65142]
[1642705260071,0.01218067,3211.8,3211.4,0.87133591]
[1642705260271,6.15,3211.7,3211.0,1.96900585]
[1642705260480,6.15,3211.7,3210.1,2.33532]
[1642705260481,0.01237067,3211.1,3210.1,2.33532]
[1642705260674,0.01237067,3211.1,3210.2,0.77864]
[1642705260871,0.01245746,3210.4,3210.0,0.77868]
[1642705261072,0.01245746,3210.4,3210.3,0.00625266]
[1642705261270,0.01149025,3210.4,3210.3,0.83948534]
[1642705261472,0.15536,3211.4,3210.3,2.28617561]
[1642705261704,0.16782674,3211.4,3210.3,2.28617561]
[1642705261910,0.16782674,3211.4,3210.8,0.83274736]
[1642705262104,0.16782674,3211.4,3210.4,0.00568423]
[1642705262306,0.01246674,3211.4,3210.9,0.00284212]
[1642705262507,1.76234806,3211.3,3211.0,1.15445346]
[1642705262705,1.76234806,3211.3,3210.5,0.77864]
[1642705262905,1.71234806,3211.3,3211.1,0.00170527]
[1642705263105,1.71234806,3211.3,3210.6,0.00454739]
[1642705263106,0.00511581,3210.9,3210.6,0.00454739]
[1642705263304,3.50511581,3210.9,3210.8,0.88134904]
[1642705263505,1.71234806,3211.3,3210.8,0.88134904]
[1642705263706,0.01246674,3211.4,3210.8,2.36237807]
[1642705263905,0.01246674,3211.4,3210.9,0.00284212]
[1642705264709,6.15,3211.2,3210.3,2.33586]
[1642705264913,6.15,3211.2,3209.6,0.04535121]
[1642705264914,0.05520414,3210.3,3209.6,0.04535121]
[1642705265112,0.01291852,3210.4,3209.6,0.04535121]
[1642705265113,6.16222224,3209.7,3209.6,0.04535121]
[1642705265356,0.01222224,3209.7,3209.6,0.04535121]
[1642705265557,0.01222224,3209.7,3209.6,0.05274071]
[1642705266057,0.15536,3210.9,3210.4,0.97328233]
[1642705266458,0.15536,3210.9,3210.5,0.00227369]
[1642705266857,0.15536,3210.9,3209.7,0.00682108]
[1642705267061,0.15536,3210.9,3210.1,1.29916436]
[1642705267471,0.01283582,3211.0,3210.7,1.06700961]
[1642705268260,0.01283582,3211.0,3210.8,1.28184785]
[1642705268461,0.01283582,3211.0,3210.8,1.65484785]
[1642705268861,0.01283582,3211.0,3210.8,4.55669255]
[1642705269102,0.00113685,3211.1,3210.8,2.43328785]
[1642705269406,0.00113685,3211.1,3210.9,0.7785]
[1642705269614,0.00113685,3211.1,3211.0,0.373]
[1642705269805,0.00113685,3211.1,3210.8,4.39558785]
[1642705269806,0.00113685,3211.1,3210.8,3.21158786]
[1642705270007,0.00113685,3211.1,3210.9,0.373]
[1642705270208,0.00113685,3211.1,3210.9,0.673]
[1642705270905,0.00113685,3211.1,3210.9,1.4515]
[1642705271106,0.00113685,3211.1,3210.9,1.1515]
[1642705272212,2.64292785,3211.6,3210.9,1.4515]
[1642705272408,2.64292785,3211.6,3211.5,1.75967929]
[1642705272857,2.64292785,3211.6,3211.5,2.90457326]
[1642705273255,2.64292785,3211.6,3211.5,1.75967929]
[1642705273456,1.54329952,3211.3,3211.2,2.0220106]
[1642705273662,4.18622737,3211.3,3211.2,1.2436706]
[1642705274057,4.18622737,3211.3,3211.2,2.0220606]
[1642705274257,4.18633337,3211.3,3211.2,3.22961509]
[1642705275057,4.18633337,3211.3,3211.2,3.82961509]
[1642705275258,0.87069063,3211.3,3211.2,4.82961509]
[1642705275461,0.0022737,3211.5,3211.2,4.82961509]
[1642705275662,0.0022737,3211.5,3211.3,1.0]
[1642705275862,2.64273319,3211.8,3211.4,2.9]
[1642705276062,2.64273319,3211.8,3211.4,0.5194]
[1642705276262,2.64273319,3211.8,3211.7,2.86775034]
[1642705276462,2.64273319,3211.8,3211.7,1.99151863]
[1642705276701,2.64500689,3211.8,3211.7,1.15127]
[1642705278608,0.44242678,3211.8,3211.7,1.45127]
[1642705278807,3.0712977,3211.9,3211.8,5.2]
[1642705279006,3.0712977,3211.9,3211.8,5.873]
[1642705279208,3.0712977,3211.9,3211.8,6.873]
[1642705279408,1.46977891,3213.0,3212.1,0.77802]
[1642705279609,3.68972669,3214.0,3212.1,0.77802]
[1642705279610,1.46977891,3213.2,3212.4,0.77801]
[1642705279808,2.21421651,3213.4,3212.4,0.77801]
[1642705279809,0.00625265,3212.9,3212.5,0.373]
[1642705280015,0.00625265,3212.9,3212.5,0.673]
[1642705280209,1.46977891,3213.3,3212.5,0.673]
[1642705280210,0.00568423,3212.8,3212.5,0.673]
[1642705280453,1.46977891,3213.3,3212.7,3.5]
[1642705280659,1.46977891,3213.5,3212.9,0.0341539]
[1642705280852,2.22671685,3213.7,3212.8,2.15092]
[1642705280853,0.00227369,3213.2,3212.8,2.15092]
[1642705281253,1.48227925,3213.7,3212.8,1.15092]
[1642705281254,0.00170527,3213.1,3212.8,1.15092]
[1642705281455,0.00170527,3213.1,3213.0,1.1126083]
[1642705281656,0.00113685,3213.0,3212.8,1.77792]
[1642705281858,0.00170527,3213.1,3212.9,0.99184304]
[1642705282058,0.00454739,3213.6,3212.9,3.76505004]
[1642705282263,0.01250034,3213.7,3213.4,0.82349236]
[1642705282463,0.01250034,3213.7,3213.5,1.07777]
[1642705282669,0.00454739,3213.6,3213.5,1.07777]
[1642705282860,0.00454739,3213.6,3213.5,1.75077]
[1642705283264,0.00454739,3213.6,3213.5,1.45077]
[1642705283565,0.00454739,3213.6,3213.4,0.8629]
[1642705283566,0.21065718,3213.2,3213.1,1.55582]
[1642705283766,0.22332177,3213.2,3213.1,1.55582]
[1642705283963,0.22559546,3213.2,3213.1,1.55582]
[1642705284206,1.46977891,3213.8,3213.1,1.55582]
[1642705284408,2.7041134,3213.7,3213.2,0.373]
[1642705284707,3.0622672,3213.3,3212.9,0.81336502]
[1642705284907,0.0122672,3213.3,3213.0,0.373]
[1642705285107,0.00113685,3213.4,3213.2,4.65]
[1642705285311,0.00113685,3213.4,3213.3,0.373]
[1642705286511,2.7041134,3214.0,3213.3,1.92869]
[1642705286512,4.17389231,3214.0,3213.3,1.92869]
[1642705286711,1.46977891,3214.1,3213.3,1.92857]
[1642705286913,0.00113685,3213.6,3213.5,1.85559]
[1642705287115,0.00113685,3213.6,3213.5,1.55559]
[1642705287963,0.00113685,3213.6,3213.5,1.85559]
[1642705288159,0.00113685,3213.6,3213.5,3.13006399]
[1642705288759,0.00113685,3213.6,3213.5,4.13006399]
[1642705288959,2.95166313,3214.5,3213.5,4.13006399]
[1642705288960,1.46977891,3214.2,3213.5,4.50306399]
[1642705289160,1.46977891,3214.2,3213.6,1.0]
[1642705289359,0.00170527,3213.9,3213.7,1.15077]
[1642705289560,0.00170527,3213.9,3213.7,2.22852]
[1642705289760,0.00113685,3213.8,3213.7,2.22852]
[1642705289960,2.21421651,3214.5,3213.8,0.93286356]
[1642705289961,1.43091576,3214.2,3213.8,0.93286356]
[1642705290164,1.43091576,3214.2,3213.8,1.30586356]
[1642705290361,1.76118666,3214.1,3213.8,1.30586356]
[1642705290761,1.76118666,3214.1,3213.9,1.55538]
[1642705290762,0.00113684,3214.0,3213.9,1.55538]
[1642705291162,0.00113684,3214.0,3213.9,4.4035285]
[1642705291598,1.7623235,3214.0,3213.9,1.55538]
[1642705292406,2.21421651,3214.5,3214.2,1.21801041]
[1642705292608,2.21421651,3214.5,3214.2,3.14620041]
[1642705292805,0.0022737,3214.4,3214.3,1.15644046]
[1642705293406,0.55437579,3214.0,3213.9,1.55538]
[1642705293608,0.0022737,3214.4,3214.0,4.5]
[1642705293806,0.01249902,3214.6,3214.0,4.5]
[1642705293807,0.00170527,3214.3,3214.0,4.873]
[1642705294008,0.00170527,3214.3,3214.1,1.9633935]
[1642705294309,0.00113685,3214.2,3214.1,1.9633935]
[1642705294707,0.00284212,3214.2,3214.1,1.9633935]
[1642705294907,0.00284212,3214.2,3214.1,2.7410235]
[1642705295549,0.00284212,3214.2,3214.1,6.7842445]
[1642705296154,2.19162389,3215.1,3214.6,1.40610089]
[1642705296355,2.19162389,3215.1,3214.5,0.77767]
[1642705296555,2.19162389,3215.1,3214.5,1.07767]
[1642705296556,0.00284212,3215.0,3214.5,1.07767]
[1642705296756,0.00284212,3215.0,3214.5,0.77767]
[1642705296956,0.00227369,3214.9,3214.5,0.77767]
[1642705297354,0.00170527,3214.8,3214.6,0.373]
[1642705297556,0.00170527,3214.8,3214.7,1.08502142]
[1642705297756,0.01206624,3215.1,3214.7,1.45802142]
[1642705297956,0.01206624,3215.1,3214.7,0.373]
[1642705298157,0.00284212,3215.0,3214.7,0.373]
[1642705298558,0.00227369,3214.9,3214.5,0.11991846]
[1642705299103,1.50449286,3214.8,3214.5,0.11991846]
[1642705299306,1.50449286,3214.8,3214.6,0.11991846]
[1642705299507,2.64212313,3214.7,3214.6,0.11991846]
[1642705299906,2.64212313,3214.7,3214.2,0.83265734]
[1642705299907,2.64212313,3214.7,3214.0,1.23709326]
[1642705300107,2.64098628,3214.6,3214.5,1.4901]
[1642705300308,2.64282379,3214.6,3214.5,1.53545121]
[1642705300509,0.00183751,3214.6,3214.5,1.53545121]
[1642705300707,0.00183751,3214.6,3214.5,4.2637385]
[1642705300913,0.00183751,3214.6,3214.5,1.83545121]
[1642705301408,0.00183751,3214.6,3214.5,1.65536967]
[1642705302210,2.64282379,3214.6,3214.5,1.65536967]
[1642705302409,2.64282379,3214.6,3214.5,1.77528813]
[1642705302610,0.00183751,3214.6,3214.5,5.65289813]
[1642705303461,0.00183751,3214.6,3214.5,0.06432779]
[1642705304158,2.64282379,3214.6,3214.5,0.36432779]
[1642705304360,0.00183751,3214.6,3214.5,1.81762893]
[1642705304558,0.00183751,3214.6,3214.5,1.86298014]
[1642705305459,0.00183751,3214.6,3214.5,1.9828986]
[1642705305661,2.64098628,3215.0,3214.5,2.9828986]
[1642705306069,0.00170527,3214.9,3214.5,2.9828986]
[1642705306462,0.00113685,3214.8,3214.5,2.10281706]
[1642705306712,0.00113685,3214.8,3214.5,0.34951592]
[1642705306912,0.00113685,3214.8,3214.5,0.33053934]
[1642705307114,6.16279519,3214.6,3214.5,0.33053934]
[1642705307312,11.43048737,3214.6,3214.5,0.33053934]
[1642705307510,11.43048737,3214.6,3214.5,0.4504578]
[1642705307914,8.80378147,3214.6,3214.5,0.4504578]
[1642705308726,8.80378147,3214.6,3214.5,0.49580901]
[1642705309515,11.23685733,3214.6,3214.5,0.49580901]
[1642705309716,11.23685733,3214.6,3214.5,0.61572747]
[1642705310748,11.23685733,3214.6,3214.5,0.73564593]
[1642705310949,11.23685733,3214.6,3214.5,0.73779958]
[1642705311651,12.73964492,3214.6,3214.5,0.78315079]
[1642705312057,12.73964492,3214.6,3214.5,0.78530444]
[1642705312455,10.30656906,3214.6,3214.5,0.78530444]
[1642705312655,2.65378147,3214.6,3214.5,0.78530444]
[1642705313056,2.65378147,3214.6,3214.5,0.78745809]
[1642705313555,2.64098628,3214.6,3214.5,1.6806935]
[1642705313755,0.00113685,3214.8,3214.5,3.88745809]
[1642705313963,0.00113685,3214.8,3214.5,3.88961174]
[1642705314610,2.64212313,3214.8,3214.5,3.88961174]
[1642705314812,3.95,3214.6,3214.3,2.67603459]
[1642705315112,2.64098628,3214.5,3214.4,0.30113684]
[1642705316113,0.00113685,3214.8,3214.4,0.30113684]
[1642705316114,2.64212313,3214.8,3214.4,0.30113684]
[1642705316314,2.64098628,3214.7,3214.4,1.73627293]
[1642705316521,2.64098628,3214.6,3214.4,1.73627293]
[1642705316711,0.00113685,3214.8,3214.5,1.55522]
[1642705317613,1.50392444,3214.8,3214.5,1.55522]
[1642705318853,1.50392444,3214.8,3214.4,0.67413684]
[1642705319061,5.65278759,3214.5,3214.4,0.37413684]
[1642705319256,4.15,3214.4,3214.0,0.77993365]
[1642705319455,0.01288872,3214.5,3214.0,0.37515365]
[1642705319655,1.50278759,3214.3,3214.1,0.00170527]
[1642705319854,0.01288872,3214.5,3214.1,0.00170527]
[1642705319855,1.50278759,3214.4,3214.1,0.00170527]
[1642705320155,1.51567631,3214.5,3214.1,0.00170527]
[1642705320355,1.50278759,3214.4,3214.1,0.00170527]
[1642705320553,1.51567631,3214.5,3214.4,0.04963286]
[1642705320757,8.67873604,3214.5,3214.4,0.04963286]
[1642705321354,8.44370834,3214.5,3214.4,0.04963286]
[1642705321621,8.44370834,3214.5,3213.8,0.58051877]
[1642705321622,6.15,3214.2,3213.4,0.0043073]
[1642705321814,6.16264773,3213.5,3213.4,0.0043073]
[1642705322416,6.16264773,3213.5,3213.0,4.80746534]
[1642705322417,6.15,3213.3,3213.0,4.80746534]
[1642705322620,0.01231587,3213.1,3213.0,4.80746534]
[1642705322818,0.01231587,3213.1,3212.9,0.88361617]
[1642705323016,0.01231587,3213.1,3212.0,0.86370444]
[1642705323418,2.27011108,3213.9,3212.5,0.77813]
[1642705323618,2.27011108,3213.9,3212.6,0.373]
[1642705323820,2.62639836,3214.0,3213.6,1.29782349]
[1642705324021,2.28265303,3214.1,3213.6,1.29782349]
[1642705324222,2.28265303,3214.1,3213.4,0.373]
[1642705324223,2.27011108,3214.0,3213.7,0.0022737]
[1642705324421,2.27011108,3213.9,3213.7,0.0022737]
[1642705324619,2.27011108,3213.9,3213.5,0.00341055]
[1642705325018,2.27011108,3213.9,3213.1,0.00568424]
[1642705325218,2.27011108,3213.9,3213.4,1.32488035]
[1642705325465,2.27011108,3213.9,3213.1,0.00568424]
[1642705325466,2.27011108,3213.9,3213.5,0.3]
[1642705325667,2.27011108,3213.9,3213.5,0.00341055]
[1642705325668,2.27011108,3213.8,3213.5,0.00341055]
[1642705325867,6.0,3213.6,3212.9,0.77802]
[1642705326067,6.0,3213.6,3212.9,1.07802]
[1642705326267,6.0,3213.6,3213.0,0.00625266]
[1642705327066,2.27011108,3213.9,3213.4,0.04963286]
[1642705327269,2.27011108,3214.0,3213.4,0.04747921]
[1642705327469,2.28265303,3214.1,3213.5,0.00341055]
[1642705327769,2.27011108,3213.9,3213.5,0.00341055]
[1642705327972,2.24758845,3213.8,3213.5,0.00341055]
[1642705328171,2.37936071,3213.9,3213.5,0.00341055]
[1642705328370,2.2804079,3213.9,3213.5,0.0055642]
[1642705328571,2.27011108,3214.0,3213.5,0.0055642]
[1642705328572,2.28265303,3214.1,3213.5,0.00341055]
[1642705328773,2.28124209,3214.0,3213.6,0.00284212]
[1642705328972,2.2654748,3214.0,3213.5,0.00341055]
[1642705329206,2.27011108,3214.0,3213.5,0.00341055]
[1642705329413,0.01254195,3214.1,3213.5,0.00341055]
[1642705329606,0.0103883,3214.1,3213.5,0.00341055]
[1642705330006,0.0103883,3214.1,3213.6,1.39470426]
[1642705330406,2.28049938,3214.1,3213.7,0.0022737]
[1642705330607,0.0103883,3214.1,3213.8,1.03138089]
[1642705330807,0.00113684,3214.3,3213.8,1.03138089]
[1642705331006,0.00113684,3214.3,3213.9,0.00113685]
[1642705331804,0.00113684,3214.3,3213.9,0.04861606]
[1642705333857,2.64241747,3214.3,3213.9,0.04861606]
[1642705334057,2.64128063,3214.2,3213.9,0.04861606]
[1642705334362,2.64128063,3214.1,3213.9,3.14861606]
[1642705334563,2.64128063,3214.0,3213.9,3.14861606]
[1642705334958,0.00113684,3214.3,3213.9,3.14861606]
[1642705335558,2.64241747,3214.3,3213.9,3.14861606]
[1642705335758,2.64128063,3214.2,3213.9,3.10113685]
[1642705336059,2.64128063,3214.1,3213.9,3.10113685]
[1642705336258,0.00113684,3214.3,3213.9,3.10113685]
[1642705336259,2.64128063,3214.0,3213.9,3.10113685]
[1642705336723,0.00113684,3214.3,3213.9,3.10113685]
[1642705336724,0.00113684,3214.3,3213.9,4.39221624]
[1642705337128,0.00113684,3214.3,3213.9,5.17002624]
[1642705337524,0.00113684,3214.3,3213.9,5.47002624]
[1642705337723,0.00113684,3214.3,3213.9,5.77002624]
[1642705338129,0.00113684,3214.3,3213.9,6.07002624]
[1642705340952,0.00113684,3214.3,3214.0,0.04311605]
[1642705341158,0.00113684,3214.3,3214.1,0.373]
[1642705341358,1.5181033,3215.1,3214.2,6.15]
[1642705341556,1.5181033,3215.4,3215.0,1.11105972]
[1642705341758,1.5181033,3215.5,3215.1,0.373]
[1642705341955,1.5181033,3215.6,3215.1,1.1503958]
[1642705342154,0.00682108,3215.5,3215.4,1.29025494]
[1642705342459,0.00738951,3215.6,3215.4,1.59025494]
[1642705342655,0.00738951,3215.6,3215.5,0.77743]
[1642705342854,0.00738951,3215.6,3215.5,1.93335226]
[1642705343058,1.52549281,3215.6,3215.5,1.93335226]
[1642705343360,0.00738951,3215.6,3215.5,1.93335226]
[1642705344116,0.00738951,3215.6,3215.5,2.30635226]
[1642705344707,0.00738951,3215.6,3215.5,5.40635226]
[1642705347314,3.70738951,3215.6,3215.5,0.40530838]
[1642705347855,0.00738951,3215.6,3215.5,0.40530838]
[1642705349059,1.48776969,3216.0,3215.5,0.40530838]
[1642705349360,2.27238477,3216.0,3215.5,0.40530838]
[1642705349560,1.76006831,3215.9,3215.5,0.40530838]
[1642705349861,0.00113684,3215.8,3215.5,0.40530838]
[1642705350265,0.00113684,3215.8,3215.5,1.07830838]
[1642705350462,0.00113684,3215.8,3215.5,0.77830838]
[1642705350863,0.00113684,3215.8,3215.5,1.07830838]
[1642705351162,0.00113684,3215.8,3215.6,0.77737]
[1642705351362,0.00113684,3215.8,3215.7,0.373]
[1642705357755,0.00113684,3215.8,3215.7,0.673]
[1642705357964,0.00113684,3215.8,3215.7,0.373]
[1642705359113,0.00113684,3215.8,3215.5,1.07742]
[1642705359305,0.00113684,3215.8,3215.5,0.3]
[1642705359504,0.00113684,3215.8,3215.4,1.89025494]
[1642705360310,0.00113684,3215.8,3215.5,1.00712064]
[1642705361910,5.45,3215.7,3215.4,1.09737558]
[1642705362210,0.00113684,3215.8,3215.7,1.04370582]
[1642705363063,0.00113684,3215.8,3215.7,1.34370582]
[1642705363259,0.00113684,3215.8,3215.7,1.04370582]
[1642705363659,0.00113684,3215.8,3215.7,1.34370582]
[1642705363862,0.00113684,3215.8,3215.7,1.64370582]
[1642705365161,2.63878836,3216.3,3216.2,2.49818624]
[1642705365362,1.72479033,3216.1,3215.7,0.3]
[1642705365568,1.72479033,3216.1,3215.9,0.84984309]
[1642705365964,1.72479033,3216.1,3215.9,1.14984309]
[1642705366165,1.72396262,3216.1,3215.9,1.14984309]
[1642705366616,1.72396262,3216.1,3215.9,0.3]
[1642705366807,1.72396262,3216.1,3215.8,1.54931515]
[1642705367105,1.72396262,3216.1,3215.8,1.84931515]
[1642705367505,1.72396262,3216.1,3215.8,1.54931515]
[1642705368309,1.72396262,3216.1,3215.5,0.4]
[1642705368711,6.16289029,3215.7,3215.6,0.00113684]
[1642705369409,6.16289029,3215.7,3215.6,1.24678552]
[1642705371865,6.16289029,3215.7,3215.6,0.00113684]
[1642705372063,8.54323938,3215.7,3215.6,0.00113684]
[1642705372262,6.16289029,3215.7,3215.6,0.00113684]
[1642705373467,8.52520704,3215.7,3215.6,0.00113684]
[1642705373667,8.54462499,3215.7,3215.6,0.00113684]
[1642705374115,0.01289029,3215.7,3215.6,0.00113684]
[1642705375015,1.72396262,3216.1,3215.6,0.00113684]
[1642705375217,1.72396262,3216.1,3216.0,1.13335473]
[1642705375614,1.72566789,3216.1,3216.0,1.43335473]
[1642705376016,1.72566789,3216.1,3216.0,5.83335473]
[1642705376215,2.0,3216.4,3216.2,1.57081049]
[1642705376418,2.0,3216.4,3216.3,0.373]
[1642705378668,1.52584193,3217.1,3216.4,0.04263052]
[1642705378863,1.42584193,3217.3,3216.6,0.777]
[1642705379062,0.00511582,3217.0,3216.8,0.04158701]
[1642705379262,4.85032934,3217.7,3217.0,3.4]
[1642705379463,2.27011108,3217.7,3217.6,2.47193788]
[1642705379661,3.15780693,3217.5,3217.2,0.373]
[1642705379863,3.15780693,3217.5,3217.4,1.10763322]
[1642705380062,3.17046465,3217.5,3217.3,1.30791502]
[1642705380466,3.55,3217.3,3217.0,0.56650726]
[1642705380668,3.55,3217.3,3217.1,0.373]
[1642705380669,5.84994862,3217.3,3217.1,0.373]
[1642705380868,5.40113684,3217.2,3217.1,0.373]
[1642705381077,7.70014567,3217.2,3217.1,0.373]
[1642705381271,9.51292301,3217.2,3217.1,0.373]
[1642705381468,6.41295359,3217.2,3216.8,0.08544757]
[1642705381709,2.30003058,3217.1,3216.8,0.08544757]
[1642705381909,2.47090649,3217.0,3216.8,0.08544757]
[1642705382207,4.77093707,3217.0,3216.8,0.08544757]
[1642705382415,4.79508071,3217.2,3216.3,0.3]
[1642705382416,5.35232557,3216.9,3216.3,0.3]
[1642705382616,4.9620191,3216.4,3216.3,0.3]
[1642705383017,0.0120191,3216.4,3216.3,0.3]
[1642705383212,0.0120191,3216.4,3216.3,1.13877902]
[1642705384012,0.0120191,3216.4,3216.3,0.3]
[1642705384212,0.0120191,3216.4,3216.3,0.7]
[1642705385013,2.65154153,3216.4,3216.3,0.7]
[1642705385955,2.63952243,3216.4,3216.3,1.0]
[1642705386165,2.63952243,3216.6,3216.3,1.0]
[1642705386352,3.03479344,3217.0,3216.3,1.0]
[1642705386353,2.63952243,3216.5,3216.3,1.0]
[1642705386555,2.29740599,3216.9,3216.4,0.30341054]
[1642705386756,2.29740599,3216.9,3216.8,1.0174203]
[1642705386955,2.29740599,3217.1,3216.8,1.0174203]
[1642705387160,2.29740599,3217.1,3216.8,1.31855715]
[1642705387962,1.54230209,3217.0,3216.8,2.18725715]
[1642705388161,1.54230209,3216.9,3216.8,2.18725715]
[1642705388562,1.54230209,3217.0,3216.8,3.26437715]
[1642705388768,1.54230209,3217.1,3216.9,3.423]
[1642705389104,1.54230209,3217.1,3216.9,1.373]
[1642705389705,1.54343893,3217.2,3216.9,1.373]
[1642705389906,1.54343893,3217.2,3216.9,0.373]
[1642705390508,1.54343893,3217.2,3216.9,1.373]
[1642705390709,1.54343893,3217.2,3216.9,0.373]
[1642705391508,0.00113684,3217.2,3216.9,0.373]
[1642705392508,1.75919314,3217.1,3216.9,0.373]
[1642705393265,0.00113684,3217.2,3217.0,3.05]
[1642705393462,0.00113684,3217.2,3216.9,0.373]
[1642705393661,0.00113684,3217.2,3217.1,1.0]
[1642705393867,0.00113684,3217.2,3217.0,0.3]
[1642705394262,4.70010902,3217.5,3217.1,1.55966901]
[1642705394467,4.70010902,3217.5,3217.2,0.7769]
[1642705394663,1.54343894,3217.4,3217.2,1.7769]
[1642705394863,0.00113685,3217.4,3217.3,0.96055552]
[1642705395063,0.00113685,3217.4,3217.3,1.56055552]
[1642705395262,1.54343894,3217.4,3217.3,1.93355552]
[1642705395463,0.00113685,3217.4,3217.3,1.93355552]
[1642705395663,0.00113685,3217.4,3217.3,2.93355552]
[1642705395863,0.00113685,3217.4,3217.3,3.72245552]
[1642705396262,3.15780693,3217.5,3217.3,3.72245552]
[1642705396903,1.54230209,3218.1,3217.4,6.15]
[1642705397105,1.54230209,3218.3,3218.1,0.92466957]
[1642705397306,1.54230209,3218.3,3218.1,2.23716957]
[1642705397504,1.54230209,3218.3,3218.1,2.83716957]
[1642705397702,1.54230209,3218.4,3218.1,3.83716957]
[1642705397905,1.54230209,3218.4,3218.2,1.5169472]
[1642705398105,1.54230209,3218.4,3218.2,2.8899472]
[1642705398306,0.00625266,3218.5,3218.2,2.8899472]
[1642705398307,1.54855475,3218.5,3218.2,2.8899472]
[1642705398505,1.54855475,3218.5,3218.3,1.21629225]
[1642705398709,0.00568423,3218.4,3218.3,1.21629225]
[1642705399112,1.54798632,3218.4,3218.3,1.21629225]
[1642705399308,0.00568423,3218.4,3218.3,1.21629225]
[1642705399507,1.54798632,3218.4,3218.3,1.21629225]
[1642705399708,0.00568423,3218.4,3218.3,1.21629225]
[1642705399908,0.00568423,3218.4,3218.2,0.373]
[1642705400367,5.30511581,3218.3,3218.2,0.373]
[1642705400757,5.30511581,3218.3,3217.8,0.04451783]
[1642705400758,7.6815617,3218.3,3217.8,0.04451783]
[1642705400954,1.54230209,3218.2,3217.8,4.9530587]
[1642705401156,2.51517111,3218.1,3217.8,4.9530587]
[1642705401355,4.06145216,3218.1,3217.8,4.9530587]
[1642705401556,0.00341054,3218.0,3217.8,4.9530587]
[1642705401761,4.18422358,3218.0,3217.8,4.9530587]
[1642705401955,4.18365516,3217.9,3217.8,4.9530587]
[1642705402158,2.64135307,3217.9,3217.8,4.9530587]
[1642705402359,0.00284212,3217.9,3217.2,1.02830735]
[1642705402659,2.63851095,3218.2,3217.2,1.32830735]
[1642705402660,0.00227369,3217.8,3217.2,1.32830735]
[1642705402858,0.00227369,3217.8,3217.2,1.62830735]
[1642705403060,0.00170527,3217.7,3217.5,1.45633772]
[1642705403261,2.59021622,3217.9,3217.5,1.45633772]